fUST/lending_fUST_20250725
["ID","MTS","AMOUNT","RATE_DAILY","PERIOD"]
[374718343,1753427441770,-460.0,0.00017032,2]
[374718345,1753427441781,-460.0,0.00017032,2]
[374718347,1753427441791,-460.0,0.00017032,2]
[374718350,1753427441801,-460.0,0.00017032,2]
[374718352,1753427441810,-155.0,0.00017032,2]
[374718354,1753427441820,-500.0,0.0001709,2]
[374718356,1753427441830,-460.0,0.00017293,2]
[374718359,1753427441851,-460.0,0.00017293,2]
[374718361,1753427441862,-499.15764859,0.00017294,2]
[374718363,1753427441872,-460.0,0.00017294,2]
[374718365,1753427441883,-460.0,0.00017294,2]
[374718367,1753427441893,-460.0,0.00017294,2]
[374718369,1753427441903,-485.92689667,0.00017294,2]
[374718372,1753427441912,-464.40426022,0.00017294,2]
[374718374,1753427441922,-460.0,0.00017294,2]
[374718375,1753427441932,-460.0,0.00017294,2]
[374718377,1753427441942,-460.0,0.00017294,2]
[374718379,1753427441952,-460.0,0.00017294,2]
[374718382,1753427441961,-460.0,0.00017294,2]
[374718384,1753427441971,-195.14,0.00017294,2]
[374718386,1753427441981,-460.0,0.00017294,2]
[374718388,1753427441992,-460.0,0.00017294,2]
[374718390,1753427442002,-460.0,0.00017295,2]
[374718392,1753427442012,-460.0,0.00017295,2]
[374718394,1753427442022,-460.0,0.00017295,2]
[374718396,1753427442031,-460.0,0.00017295,2]
[374718398,1753427442042,-460.0,0.00017295,2]
[374718400,1753427442052,-460.0,0.00017295,2]
[374718402,1753427442062,-464.16451372,0.00017295,2]
[374718404,1753427442071,-460.0,0.00017296,2]
[374718406,1753427442082,-499.84,0.00017296,2]
[374718408,1753427442092,-463.81,0.00017296,2]
[374718410,1753427442106,-345.81559159,0.00017296,2]
[374718432,1753427442326,-114.18440841,0.00017296,2]
[374718435,1753427442336,-488.82,0.00017296,2]
[374718437,1753427442347,-58.04872033,0.00017296,2]
[374718461,1753427442576,-423.23413485,0.00017296,2]
[374718463,1753427442587,-460.0,0.00017296,2]
[374718465,1753427442597,-460.0,0.00017296,2]
[374718467,1753427442607,-482.82008555,0.00017296,2]
[374718469,1753427442618,-460.0,0.00017296,2]
[374718471,1753427442628,-460.0,0.00017296,2]
[374718473,1753427442639,-460.0,0.00017297,2]
[374718475,1753427442649,-208.25395994,0.00017297,2]
[374718477,1753427442660,-464.86,0.00017297,2]
[374718479,1753427442670,-460.0,0.00017297,2]
[374718481,1753427442681,-460.0,0.00017297,2]
[374718484,1753427442691,-463.66450557,0.00017298,2]
[374718486,1753427442700,-460.0,0.00017298,2]
[374718488,1753427442710,-460.0,0.00017298,2]
[374718490,1753427442720,-460.0,0.00017298,2]
[374718492,1753427442730,-460.0,0.00017298,2]
[374718494,1753427442740,-460.0,0.00017298,2]
[374718497,1753427442750,-460.0,0.00017298,2]
[374718500,1753427442760,-460.0,0.00017298,2]
[374718503,1753427442770,-463.80180174,0.00017298,2]
[374718506,1753427442780,-460.0,0.00017298,2]
[374718509,1753427442793,-460.0,0.00017298,2]
[374718512,1753427442803,-460.0,0.00017298,2]
[374718515,1753427442813,-460.0,0.00017298,2]
[374718517,1753427442822,-460.0,0.00017298,2]
[374718519,1753427442832,-460.0,0.00017298,2]
[374718521,1753427442841,-460.0,0.00017298,2]
[374718523,1753427442851,-465.61257395,0.00017298,2]
[374718525,1753427442861,-460.0,0.00017298,2]
[374718527,1753427442871,-262.03780925,0.00017298,2]
[374718529,1753427442880,-460.0,0.00017298,2]
[374718531,1753427442891,-271.65969711,0.00017298,2]
[374718533,1753427442900,-460.0,0.00017298,2]
[374718535,1753427442910,-460.0,0.00017298,2]
[374718537,1753427442920,-460.0,0.00017298,2]
[374718539,1753427442930,-460.0,0.00017298,2]
[374718541,1753427442941,-468.26286055,0.00017298,2]
[374718543,1753427442950,-460.0,0.00017298,2]
[374718546,1753427442961,-460.0,0.00017298,2]
[374718548,1753427442971,-508.48198521,0.00017298,2]
[374718549,1753427442982,-460.0,0.00017298,2]
[374718552,1753427442992,-460.0,0.00017298,2]
[374718553,1753427443002,-460.0,0.00017298,2]
[374718555,1753427443012,-415.63,0.00017298,2]
[374718557,1753427443021,-460.0,0.00017298,2]
[374718560,1753427443031,-463.41155242,0.00017298,2]
[374718562,1753427443042,-460.0,0.00017298,2]
[374718564,1753427443053,-460.0,0.00017298,2]
[374718566,1753427443063,-463.23440201,0.00017298,2]
[374718568,1753427443073,-460.0,0.00017298,2]
[374718570,1753427443083,-460.0,0.00017298,2]
[374718572,1753427443094,-460.0,0.00017298,2]
[374718574,1753427443107,-460.0,0.00017298,2]
[374718576,1753427443118,-460.0,0.00017298,2]
[374718578,1753427443127,-460.0,0.00017298,2]
[374718580,1753427443137,-460.0,0.00017298,2]
[374718582,1753427443147,-460.0,0.00017298,2]
[374718584,1753427443157,-557.6136693,0.00017299,2]
[374718586,1753427443167,-460.0,0.00017299,2]
[374718588,1753427443178,-460.0,0.00017299,2]
[374718590,1753427443188,-460.0,0.00017299,2]
[374718592,1753427443198,-460.0,0.00017299,2]
[374718594,1753427443208,-460.0,0.00017299,2]
[374718596,1753427443217,-460.0,0.00017299,2]
[374718598,1753427443229,-526.49,0.00017299,2]
[374718600,1753427443239,-460.0,0.00017299,2]
[374718602,1753427443248,-460.0,0.00017299,2]
[374718604,1753427443258,-460.0,0.00017299,2]
[374718606,1753427443269,-460.0,0.00017302,2]
[374718608,1753427443279,-460.0,0.00017302,2]
[374718610,1753427443289,-460.0,0.00017302,2]
[374718613,1753427443300,-460.0,0.00017302,2]
[374718615,1753427443309,-460.0,0.00017302,2]
[374718617,1753427443319,-460.0,0.00017302,2]
[374718619,1753427443329,-460.0,0.00017302,2]
[374718621,1753427443339,-460.0,0.00017302,2]
[374718623,1753427443349,-465.01127118,0.00017302,2]
[374718625,1753427443359,-460.0,0.00017306,2]
[374718627,1753427443368,-460.0,0.00017306,2]
[374718629,1753427443377,-460.0,0.00017306,2]
[374718631,1753427443387,-460.0,0.00017306,2]
[374718633,1753427443396,-460.0,0.00017306,2]
[374718635,1753427443406,-468.15819094,0.00017306,2]
[374718637,1753427443416,-460.0,0.00017306,2]
[374718639,1753427443425,-460.0,0.00017306,2]
[374718641,1753427443435,-460.0,0.00017306,2]
[374718643,1753427443445,-460.0,0.00017306,2]
[374718645,1753427443454,-460.0,0.00017306,2]
[374718647,1753427443464,-461.55339547,0.00017306,2]
[374718649,1753427443473,-460.0,0.00017306,2]
[374718651,1753427443483,-460.0,0.00017306,2]
[374718653,1753427443493,-460.0,0.00017306,2]
[374718654,1753427443504,-460.0,0.00017306,2]
[374718656,1753427443513,-460.0,0.00017306,2]
[374718658,1753427443523,-460.0,0.00017306,2]
[374718660,1753427443533,-460.0,0.00017306,2]
[374718662,1753427443543,-460.0,0.00017306,2]
[374718664,1753427443553,-460.0,0.00017306,2]
[374718667,1753427443564,-460.0,0.00017306,2]
[374718668,1753427443576,-460.0,0.00017306,2]
[374718671,1753427443586,-460.0,0.00017306,2]
[374718673,1753427443596,-500.0,0.00017306,2]
[374718675,1753427443606,-460.0,0.00017306,2]
[374718677,1753427443615,-499.83331563,0.00017306,2]
[374718679,1753427443625,-460.0,0.00017306,2]
[374718680,1753427443634,-460.0,0.00017306,2]
[374718682,1753427443644,-462.08622191,0.00017306,2]
[374718685,1753427443654,-460.0,0.00017306,2]
[374718687,1753427443664,-460.0,0.00017306,2]
[374718689,1753427443674,-460.0,0.00017567,2]
[374718691,1753427443684,-460.0,0.00017568,2]
[374718693,1753427443694,-434.22,0.00017568,2]
[374718695,1753427443705,-460.0,0.0001757,2]
[374718697,1753427443715,-460.0,0.0001757,2]
[374718699,1753427443725,-460.0,0.0001757,2]
[374718701,1753427443734,-460.0,0.0001757,2]
[374718703,1753427443744,-460.0,0.00017571,2]
[374718705,1753427443754,-269.22,0.00017572,2]
[374718707,1753427443765,-460.0,0.00017572,2]
[374718709,1753427443775,-242.19267156,0.00017572,2]
[374718711,1753427443785,-460.0,0.00017572,2]
[374718713,1753427443795,-460.0,0.00017572,2]
[374718715,1753427443805,-460.0,0.00017572,2]
[374718717,1753427443816,-520.17098727,0.00017572,2]
[374718719,1753427443825,-460.0,0.00017572,2]
[374718721,1753427443835,-460.0,0.00017573,2]
[374718723,1753427443844,-460.0,0.00017573,2]
[374718725,1753427443854,-460.0,0.00017576,2]
[374718727,1753427443864,-460.0,0.00017576,2]
[374718729,1753427443874,-480.97,0.00017576,2]
[374718731,1753427443884,-460.0,0.00017576,2]
[374718733,1753427443895,-491.1,0.00017576,2]
[374718735,1753427443905,-460.0,0.00017576,2]
[374718737,1753427443914,-460.0,0.00017576,2]
[374718739,1753427443924,-183.16974923,0.0001758,2]
[374718741,1753427443934,-460.0,0.0001758,2]
[374718743,1753427443945,-460.0,0.0001758,2]
[374718745,1753427443954,-460.17030006,0.0001758,2]
[374718747,1753427443964,-460.0,0.0001758,2]
[374718749,1753427443974,-460.0,0.0001758,2]
[374718751,1753427443984,-460.0,0.0001758,2]
[374718753,1753427443994,-460.0,0.0001758,2]
[374718755,1753427444003,-151.0,0.00017733,2]
[374718757,1753427444013,-367.03362379,0.00017747,2]
[374718759,1753427444023,-393.46,0.00017841,2]
[374718761,1753427444032,-460.0,0.00017844,2]
[374718764,1753427444041,-460.0,0.00017844,2]
[374718766,1753427444051,-460.0,0.00017846,2]
[374718768,1753427444061,-4252.12469711,0.0001801,2]
[374718770,1753427444070,-460.0,0.00018118,2]
[374718772,1753427444080,-460.0,0.00018118,2]
[374718774,1753427444090,-460.0,0.0001812,2]
[374718776,1753427444102,-460.0,0.00018392,2]
[374718777,1753427444112,-460.0,0.00018392,2]
[374718780,1753427444122,-460.0,0.00018394,2]
[374718782,1753427444132,-420.0,0.00018586,2]
[374718783,1753427444142,-473.59850789,0.00018666,2]
[374718786,1753427444153,-460.0,0.00018666,2]
[374718787,1753427444162,-460.0,0.00018668,2]
[374718790,1753427444173,-500.0,0.00018674,2]
[374718791,1753427444184,-500.0,0.00018675,2]
[374718793,1753427444194,-156.0,0.00018767,3]
[374718796,1753427444204,-588.79371624,0.00018899,2]
[374718798,1753427444213,-150.0,0.000189,2]
[374718799,1753427444223,-302.8183302,0.000189,2]
[374718801,1753427444232,-1166.57295675,0.000189,2]
[374718803,1753427444242,-160.0,0.00018937,2]
[374718805,1753427444252,-160.0,0.0001894,2]
[374718807,1753427444262,-460.0,0.0001894,2]
[374718809,1753427444273,-460.0,0.00018942,2]
[374718812,1753427444283,-151.0,0.00018949,2]
[374718814,1753427444294,-213.187145,0.00018951,2]
[374718815,1753427444304,-213.187145,0.00018951,2]
[374718817,1753427444314,-160.0,0.00018959,2]
[374718820,1753427444324,-302.8183302,0.00019089,2]
[374718822,1753427444334,-1166.57295674,0.00019141,2]
[374718823,1753427444343,-194.585,0.00019178,2]
[374718826,1753427444353,-241.88,0.00019214,2]
[374718828,1753427444364,-460.0,0.00019216,2]
[374718829,1753427444373,-302.8183302,0.00019278,2]
[374718831,1753427444383,-1166.57295674,0.00019383,2]
[374718834,1753427444393,-488.98,0.00019404,2]
[374718836,1753427444403,-302.8183302,0.00019467,2]
[374718837,1753427444412,-460.0,0.0001949,2]
[374718840,1753427444422,-1166.57295674,0.00019624,2]
[374718841,1753427444432,-302.8183302,0.00019656,2]
[374718843,1753427444442,-311.76518969,0.00019764,2]
[374718846,1753427444452,-454.2274953,0.00019845,4]
[374718847,1753427444461,-1166.57295674,0.00019866,2]
[374718849,1753427444471,-151.0,0.0002,2]
[374718851,1753427444481,-213.187145,0.0002,2]
[374718853,1753427444491,-213.187145,0.0002,2]
[374718856,1753427444501,-213.187145,0.0002,2]
[374718858,1753427444510,-213.187145,0.0002,2]
[374718859,1753427444520,-151.4394318,0.0002,2]
[374718862,1753427444531,-13000.0,0.0002,2]
[374718864,1753427444541,-454.2274953,0.00020034,4]
[374718866,1753427444551,-1166.57295674,0.00020107,2]
[374718867,1753427444561,-583.37231,0.00020187,2]
[374718869,1753427444571,-340.3,0.00020208,3]
[374718871,1753427444581,-40.73867153,0.00020223,4]
[374718875,1753427444600,-460.0,0.00017024,2]
[374718876,1753427444609,-263.04850766,0.00020223,4]
[374718878,1753427444619,-587.0,0.000203,2]
[374718880,1753427444628,-644.12652718,0.00020328,2]
[374718884,1753427444654,-460.0,0.00017024,2]
[374718886,1753427444663,-333.83347282,0.00020328,2]
[374718888,1753427444673,-1166.57295674,0.00020348,3]
[374718890,1753427444683,-306.36,0.000204,2]
[374718905,1753427444813,-6451.26792116,0.00020448,2]
[374718907,1753427444823,-1678.75223158,0.00020448,2]
[374718909,1753427444833,-213.187145,0.00020473,2]
[374718911,1753427444842,-213.187145,0.00020473,2]
[374718913,1753427444852,-160.0,0.000205,2]
[374718915,1753427444861,-151.0,0.00020507,2]
[374718917,1753427444871,-164.09681,0.00020507,2]
[374718919,1753427444880,-164.09681,0.00020507,2]
[374718921,1753427444890,-151.221369,0.00020507,2]
[374718923,1753427444899,-151.0,0.00020507,2]
[374718925,1753427444908,-81313.62677913,0.00020507,2]
[374719093,1753427447837,-2620.614968,0.00020507,2]
[374719763,1753427703368,1105.0,0.00017,2]
[374719764,1753427751120,1284.9,0.00017,2]
[374719765,1753427827788,593.759445,0.00013699,2]
[374719767,1753427872365,174.73246776,0.00016918,2]
[374719768,1753427872391,27.59785654,0.00016918,2]
[374719769,1753427980210,249.8835118,0.00016022,2]
[374719770,1753428004952,323.97087143,0.00017,2]
[374719771,1753428073524,174.42066439,0.00016925,2]
[374719772,1753428255422,9224.12709584,0.00016022,2]
[374719773,1753428255448,10000.0,0.00016022,2]
[374719774,1753428255477,5675.87290416,0.00016022,2]
[374719779,1753428272311,4324.12709584,0.00017,2]
[374719780,1753428272337,675.87290416,0.00017,2]
[374719781,1753428288011,5000.0,0.00017,2]
[374719782,1753428304930,4324.12709584,0.00017,2]
[374719783,1753428304960,675.87290416,0.00017,2]
[374719784,1753428320262,5000.0,0.00017,2]
[374719785,1753428336184,4324.12709584,0.00017,2]
[374719786,1753428336213,675.87290416,0.00017,2]
[374719788,1753428355249,5000.0,0.00017,2]
[374719789,1753428368885,152.61808128,0.00016923,2]
[374719790,1753428372399,4171.50901456,0.00017,2]
[374719791,1753428372427,828.49098544,0.00017,2]
[374719792,1753428389019,5000.0,0.00017,2]
[374719793,1753428404860,4171.50901456,0.00017,2]
[374719794,1753428404889,828.49098544,0.00017,2]
[374719795,1753428404928,253.91946,0.00016507,2]
[374719796,1753428405301,231.12643934,0.00016508,2]
[374719797,1753428421369,5000.0,0.00017,2]
[374719798,1753428436679,3686.46311522,0.00017,2]
[374719799,1753428436708,1313.53688478,0.00017,2]
[374719800,1753428452055,5000.0,0.00017,2]
[374719801,1753428467445,509.13075804,0.00017,2]
[374719803,1753428509226,1731.74598963,0.00017,2]
[374719809,1753428588934,166.0,0.00016438,2]
[374719810,1753428607867,1109.1768124,0.00016148,2]
[374719833,1753428632704,-454.9658173,0.00017003,2]
[374719834,1753428632715,-160.0,0.00017017,2]
[374719835,1753428632725,-300.0,0.00017017,2]
[374719836,1753428632735,-109.91711128,0.00017017,2]
[374719837,1753428632747,-686.08288872,0.00017017,2]
[374719838,1753428632758,-300.0,0.00017017,2]
[374719839,1753428632769,-500.0,0.00017018,2]
[374719840,1753428632779,-503.79151471,0.00017018,2]
[374719841,1753428632789,-215.01771511,0.00017018,2]
[374719842,1753428632799,-482.35171785,0.00017018,2]
[374719843,1753428632809,-173.86462099,0.00017018,2]
[374719844,1753428632822,-500.0,0.00017018,2]
[374719845,1753428632832,-500.0,0.00017018,2]
[374719846,1753428632842,-500.0,0.00017018,2]
[374719847,1753428632851,-500.0,0.00017018,2]
[374719848,1753428632861,-500.0,0.00017018,2]
[374719849,1753428632870,-464.63012165,0.00017018,2]
[374719850,1753428632879,-508.15,0.00017018,2]
[374719851,1753428632889,-460.0,0.00017018,2]
[374719852,1753428632899,-460.0,0.00017018,2]
[374719853,1753428632908,-500.0,0.00017018,2]
[374719854,1753428632918,-460.0,0.00017018,2]
[374719855,1753428632927,-2741.59266908,0.00017018,2]
[374719856,1753428632937,-460.0,0.00017019,2]
[374719857,1753428632946,-483.32,0.00017019,2]
[374719858,1753428632956,-460.0,0.00017019,2]
[374719859,1753428632965,-460.0,0.00017019,2]
[374719860,1753428632975,-462.64,0.00017019,2]
[374719861,1753428632985,-460.0,0.00017019,2]
[374719862,1753428632994,-460.0,0.00017019,2]
[374719863,1753428633004,-581.85612869,0.00017019,2]
[374719864,1753428633014,-460.0,0.00017019,2]
[374719865,1753428633024,-460.0,0.00017019,2]
[374719866,1753428633034,-460.0,0.00017019,2]
[374719867,1753428633044,-460.0,0.00017019,2]
[374719868,1753428633054,-460.0,0.00017019,2]
[374719869,1753428633064,-460.0,0.00017019,2]
[374719870,1753428633081,-460.0,0.00017019,2]
[374719871,1753428633091,-460.0,0.00017019,2]
[374719872,1753428633101,-460.0,0.00017019,2]
[374719873,1753428633111,-460.0,0.00017019,2]
[374719874,1753428633121,-460.0,0.00017019,2]
[374719875,1753428633131,-460.0,0.00017019,2]
[374719876,1753428633141,-521.36512209,0.00017019,2]
[374719877,1753428633150,-460.0,0.00017019,2]
[374719878,1753428633160,-460.0,0.0001702,2]
[374719879,1753428633169,-460.0,0.0001702,2]
[374719880,1753428633179,-460.0,0.0001702,2]
[374719881,1753428633189,-460.0,0.0001702,2]
[374719882,1753428633199,-460.0,0.0001702,2]
[374719883,1753428633209,-460.0,0.0001702,2]
[374719884,1753428633218,-476.98,0.0001702,2]
[374719885,1753428633228,-460.0,0.00017021,2]
[374719886,1753428633237,-460.0,0.00017021,2]
[374719887,1753428633247,-460.0,0.00017021,2]
[374719888,1753428633256,-460.0,0.00017021,2]
[374719889,1753428633266,-460.0,0.00017021,2]
[374719890,1753428633275,-460.0,0.00017021,2]
[374719891,1753428633285,-460.0,0.00017021,2]
[374719892,1753428633295,-239.97948252,0.00017021,2]
[374719893,1753428633304,-469.74,0.00017021,2]
[374719894,1753428633313,-367.62095094,0.00017021,2]
[374719895,1753428633327,-460.0,0.00017021,2]
[374719896,1753428633337,-460.0,0.00017021,2]
[374719897,1753428633346,-460.0,0.00017022,2]
[374719898,1753428633356,-460.0,0.00017022,2]
[374719899,1753428633366,-460.0,0.00017023,2]
[374719900,1753428633375,-460.0,0.00017023,2]
[374719901,1753428633385,-207.97523436,0.00017023,2]
[374719902,1753428633395,-460.0,0.00017023,2]
[374719903,1753428633405,-585.07,0.00017023,2]
[374719904,1753428633414,-460.0,0.00017023,2]
[374719905,1753428633424,-460.0,0.00017023,2]
[374719906,1753428633434,-480.42,0.00017023,2]
[374719907,1753428633446,-460.0,0.00017023,2]
[374719908,1753428633456,-460.0,0.00017023,2]
[374719909,1753428633466,-460.0,0.00017023,2]
[374719910,1753428633475,-460.0,0.00017023,2]
[374719911,1753428633485,-460.0,0.00017023,2]
[374719912,1753428633495,-460.0,0.00017023,2]
[374719913,1753428633504,-460.0,0.00017023,2]
[374719914,1753428633513,-402.86547574,0.00017023,2]
[374719915,1753428633525,-460.0,0.00017023,2]
[374719916,1753428633535,-270.26812957,0.00017023,2]
[374719917,1753428633544,-460.0,0.00017024,2]
[374719918,1753428633554,-462.33,0.00017024,2]
[374719920,1753428633563,-524.66463677,0.00017024,2]
[374719922,1753428633576,-462.60228664,0.00017024,2]
[374719923,1753428633586,-460.0,0.00017024,2]
[374719924,1753428633596,-212.43224916,0.00017024,2]
[374719925,1753428633606,-460.0,0.00017024,2]
[374719926,1753428633615,-462.39353016,0.00017024,2]
[374719927,1753428633624,-460.0,0.00017024,2]
[374719928,1753428633634,-462.43148366,0.00017024,2]
[374719929,1753428633644,-467.18592244,0.00017024,2]
[374719930,1753428633653,-460.0,0.00017024,2]
[374719932,1753428633663,-460.0,0.00017024,2]
[374719934,1753428633672,-579.65870399,0.00017024,2]
[374719935,1753428633683,-460.0,0.00017024,2]
[374719937,1753428633693,-460.0,0.00017024,2]
[374719938,1753428633703,-460.0,0.00017024,2]
[374719939,1753428633712,-460.0,0.00017024,2]
[374719940,1753428633722,-462.74567641,0.00017024,2]
[374719942,1753428633733,-460.0,0.00017024,2]
[374719944,1753428633742,-460.0,0.00017024,2]
[374719946,1753428633752,-188.55985103,0.00017024,2]
[374719947,1753428633762,-460.0,0.00017024,2]
[374719948,1753428633772,-460.0,0.00017024,2]
[374719949,1753428633782,-539.16,0.00017024,2]
[374719951,1753428633791,-460.0,0.00017024,2]
[374719953,1753428633800,-460.0,0.00017024,2]
[374719955,1753428633810,-270.48746542,0.00017024,2]
[374719958,1753428633829,-121.47266009,0.00017024,2]
[374719960,1753428633838,-326.90425023,0.00017025,2]
[374719962,1753428633848,-460.0,0.00017025,2]
[374719964,1753428633857,-460.0,0.00017025,2]
[374719966,1753428633866,-460.0,0.00017025,2]
[374719968,1753428633876,-460.0,0.00017025,2]
[374719970,1753428633886,-460.0,0.00017025,2]
[374719972,1753428633895,-529.57106144,0.00017025,2]
[374719974,1753428633904,-460.0,0.00017025,2]
[374719976,1753428633914,-602.41153146,0.00017025,2]
[374719978,1753428633923,-460.0,0.00017025,2]
[374719980,1753428633935,-61.99308486,0.00017025,2]
[374720329,1753428638469,-477.67246598,0.00017025,2]
[374720331,1753428638479,-460.0,0.00017025,2]
[374720333,1753428638490,-71.46739731,0.00017025,2]
[374720336,1753428638502,-388.53260269,0.00017025,2]
[374720338,1753428638512,-461.48919053,0.00017025,2]
[374720340,1753428638523,-500.0,0.00017025,2]
[374720342,1753428638533,-500.0,0.00017025,2]
[374720344,1753428638542,-470.93417239,0.00017221,2]
[374720346,1753428638554,-29.06582761,0.00017221,2]
[374720348,1753428638563,-500.0,0.00017231,2]
[374720350,1753428638574,-65.91822133,0.00017292,2]
[374720353,1753428638585,-241.45177867,0.00017292,2]
[374720354,1753428638595,-320.39600912,0.00017293,2]
[374720357,1753428638607,-6.63399088,0.00017293,2]
[374720359,1753428638616,-460.0,0.00017293,2]
[374720361,1753428638626,-460.0,0.00017293,2]
[374720363,1753428638635,-110.20275622,0.00017294,2]
[374720371,1753428638706,-473.43725263,0.00017294,2]
[374720373,1753428638716,-158.56,0.00017294,2]
[374720375,1753428638726,-460.0,0.00017294,2]
[374720378,1753428638736,-460.0,0.00017295,2]
[374720380,1753428638745,-460.0,0.00017295,2]
[374720382,1753428638755,-201.67,0.00017295,2]
[374720384,1753428638764,-460.0,0.00017295,2]
[374720385,1753428638774,-500.0,0.00017296,2]
[374720388,1753428638783,-155.51211655,0.00017296,2]
[374720389,1753428638793,-460.0,0.00017297,2]
[374720391,1753428638803,-460.0,0.00017297,2]
[374720393,1753428638812,-460.0,0.00017297,2]
[374720396,1753428638822,-460.0,0.00017297,2]
[374720397,1753428638831,-460.0,0.00017297,2]
[374720400,1753428638842,-460.0,0.00017298,2]
[374720402,1753428638851,-500.0,0.00017299,2]
[374720404,1753428638860,-500.0,0.00017299,2]
[374720406,1753428638869,-549.04,0.00017567,2]
[374720408,1753428638879,-460.0,0.00017568,2]
[374720410,1753428638888,-460.0,0.00017569,2]
[374720411,1753428638897,-245.69,0.00017569,2]
[374720413,1753428638906,-460.0,0.00017569,2]
[374720415,1753428638916,-460.0,0.00017571,2]
[374720418,1753428638926,-524.24,0.00017571,2]
[374720419,1753428638935,-460.0,0.00017571,2]
[374720421,1753428638944,-460.0,0.00017571,2]
[374720423,1753428638953,-460.0,0.00017572,2]
[374720425,1753428638963,-500.0,0.00017573,2]
[374720427,1753428638972,-500.0,0.00017573,2]
[374720429,1753428638982,-1146.26358049,0.00017779,2]
[374720432,1753428638991,-460.0,0.00017842,2]
[374720434,1753428639001,-430.47,0.00017843,2]
[374720435,1753428639010,-460.0,0.00017843,2]
[374720436,1753428639019,-270.26334825,0.00017845,2]
[374720437,1753428639029,-460.0,0.00017845,2]
[374720438,1753428639038,-460.0,0.00017846,2]
[374720439,1753428639047,-500.0,0.00017847,2]
[374720440,1753428639057,-500.0,0.00017847,2]
[374720441,1753428639067,-7115.63051037,0.00018,2]
[374720442,1753428639076,-2724.99651763,0.00018,2]
[374720443,1753428639086,-460.0,0.00018116,2]
[374720444,1753428639096,-460.0,0.00018117,2]
[374720445,1753428639105,-460.0,0.00018119,2]
[374720446,1753428639115,-460.0,0.0001812,2]
[374720447,1753428639124,-500.0,0.00018121,2]
[374720448,1753428639133,-500.0,0.00018121,2]
[374720449,1753428639143,-363.6,0.0001839,2]
[374720450,1753428639152,-460.0,0.00018391,2]
[374720451,1753428639162,-460.0,0.00018393,2]
[374720452,1753428639171,-460.0,0.00018394,2]
[374720453,1753428639181,-500.0,0.00018395,2]
[374720454,1753428639191,-500.0,0.00018395,2]
[374720455,1753428639200,-420.0,0.00018586,2]
[374720456,1753428639209,-460.0,0.00018665,2]
[374720457,1753428639219,-500.0,0.00018669,2]
[374720458,1753428639228,-500.0,0.00018669,2]
[374720459,1753428639238,-177.0,0.0001874,3]
[374720460,1753428639247,-214.7599002,0.00018804,2]
[374720461,1753428639257,-1203.21275258,0.000189,2]
[374720462,1753428639267,-1173.2225774,0.000189,2]
[374720463,1753428639276,-460.0,0.00018939,2]
[374720464,1753428639285,-500.0,0.00018943,2]
[374720465,1753428639409,-500.0,0.00018943,2]
[374720466,1753428639426,-160.0,0.00018975,2]
[374720467,1753428639436,-1173.22257735,0.00019141,2]
[374720468,1753428639448,-194.585,0.00019178,2]